bitfinex/quotes_ETHUSD_20240702
["timestamp","ask_amount","ask_price","bid_price","bid_amount"]
[1719898970219,0.18314619,3460.3,3460.2,0.16092848]
[1719898970418,0.18314619,3460.3,3460.0,0.821]
[1719898970647,0.18314619,3460.3,3460.2,0.16092848]
[1719898970831,0.18314619,3460.3,3460.2,0.821]
[1719898971033,0.18314619,3460.3,3460.2,0.98192848]
[1719898974853,0.18314619,3460.7,3460.2,0.98192848]
[1719898975180,1.18314619,3460.7,3460.5,0.821]
[1719898975860,1.18314619,3460.7,3460.6,0.16115518]
[1719898978338,1.0,3460.7,3460.6,0.16115518]
[1719898980168,1.18314619,3460.7,3460.6,0.16115518]
[1719898980737,1.0,3460.7,3460.6,0.16115518]
[1719898982664,1.18314619,3460.9,3460.6,0.71115518]
[1719898982825,1.18314619,3460.9,3460.8,0.821]
[1719898983355,1.18314619,3460.9,3460.8,0.98231521]
[1719898984455,1.18314619,3460.9,3460.8,0.16131521]
[1719898984751,1.18314619,3460.9,3460.6,0.821]
[1719898985057,1.18314619,3460.9,3460.7,0.16131521]
[1719898998553,4.07258619,3460.9,3460.7,0.16131521]
[1719898998787,5.3535,3460.8,3460.7,0.16131521]
[1719898999185,2.88961,3460.7,3460.3,1.371]
[1719898999373,3.07275619,3460.7,3460.3,1.371]
[1719898999778,4.07275619,3460.7,3460.3,1.371]
[1719899000593,4.07275619,3460.7,3460.5,0.821]
[1719899008067,4.07275619,3460.7,3460.6,0.15599668]
[1719899014404,1.18314619,3460.7,3460.6,0.15599668]
[1719899015417,0.18314619,3460.7,3460.6,0.15599668]
[1719899020434,1.16513758,3460.7,3460.6,0.15599668]
[1719899021807,2.16513758,3460.7,3460.6,0.15599668]
[1719899027349,1.16513758,3460.7,3460.6,0.15599668]
[1719899030541,2.16513758,3460.7,3460.6,0.15599668]
[1719899037657,2.14930534,3460.7,3460.6,0.15599668]
[1719899059591,2.70404293,3460.7,3460.6,0.15599668]
[1719899059772,2.70404293,3460.7,3460.4,0.821]
[1719899059972,0.96615915,3460.6,3460.4,0.821]
[1719899060297,0.96615915,3460.6,3460.5,0.15529018]
[1719899060821,0.96615915,3460.6,3460.3,1.371]
[1719899060993,0.96615915,3460.6,3460.5,0.15529018]
[1719899061195,0.96615915,3460.6,3460.3,1.371]
[1719899061393,0.96615915,3460.6,3460.4,0.15529018]
[1719899064488,0.96615915,3460.6,3460.5,0.821]
[1719899065119,0.96615915,3460.6,3460.5,0.97629018]
[1719899082344,0.96615915,3460.6,3460.5,0.15529018]
[1719899082645,0.96615915,3460.6,3460.4,0.821]
[1719899082855,0.96615915,3460.6,3460.5,0.15531008]
[1719899085055,0.96620546,3460.6,3460.5,0.15531008]
[1719899117602,0.96620546,3460.6,3460.5,0.82573109]
[1719899117820,1.18314619,3461.2,3460.5,1.37573109]
[1719899118017,1.52059788,3461.1,3460.8,0.821]
[1719899118335,0.96606115,3461.0,3460.9,0.15505771]
[1719899119960,1.14920734,3461.0,3460.9,0.15505771]
[1719899120246,1.14920734,3461.0,3460.9,0.821]
[1719899120415,2.14920734,3461.0,3460.9,0.97600793]
[1719899128759,1.18314619,3461.2,3460.9,0.97600793]
[1719899129047,0.96608889,3461.1,3460.9,0.97600793]
[1719899129243,1.18314619,3461.2,3460.9,0.97600793]
[1719899129436,0.96608884,3461.1,3460.9,0.97600793]
[1719899129616,1.18314619,3461.2,3460.9,0.15500793]
[1719899129815,0.96609008,3461.1,3460.9,0.97600793]
[1719899130019,1.18314619,3461.2,3460.9,0.821]
[1719899130216,0.96609441,3461.1,3461.0,0.15492826]
[1719899133541,0.96609441,3461.1,3460.6,0.821]
[1719899133743,1.0,3460.9,3460.7,0.55]
[1719899135119,2.56204619,3460.8,3460.2,7.43]
[1719899135320,1.0,3460.7,3460.2,7.43]
[1719899135544,2.56204619,3460.8,3460.2,7.43]
[1719899135769,0.96617246,3460.7,3460.2,7.43]
[1719899135944,2.56204619,3460.8,3460.2,7.43]
[1719899136120,0.96618107,3460.7,3460.2,7.43]
[1719899136325,2.88959,3460.7,3460.2,7.43]
[1719899136761,0.96618148,3460.6,3460.2,7.43]
[1719899137059,1.0,3460.5,3460.3,0.55]
[1719899137824,1.0,3460.5,3460.2,0.55]
[1719899138933,1.0,3460.5,3460.2,1.371]
[1719899141657,1.0,3460.5,3460.2,2.097117]
[1719899142282,1.0,3460.5,3460.4,0.821]
[1719899142939,1.0,3460.5,3460.4,0.976144]
[1719899144160,2.88968,3460.6,3460.4,0.976144]
[1719899144479,1.0,3460.5,3460.4,0.976144]
[1719899150682,1.0,3460.5,3460.4,0.155144]
[1719899151209,1.0,3460.5,3460.4,0.15513738]
[1719899151503,1.0,3460.5,3460.2,2.097117]
[1719899152011,1.0,3460.5,3460.3,0.15513738]
[1719899153447,4.07289619,3460.5,3460.3,0.15513738]
[1719899153655,3.85605376,3460.4,3460.3,0.15513738]
[1719899153955,2.88998,3460.3,3459.9,0.821]
[1719899154584,1.0,3460.2,3459.9,0.821]
[1719899154779,3.07312619,3460.3,3459.9,0.821]
[1719899156068,1.0,3460.2,3459.9,0.821]
[1719899157989,1.0,3460.2,3460.0,0.1551739]
[1719899158457,3.07312619,3460.3,3460.1,0.821]
[1719899158657,1.0,3460.2,3460.1,0.821]
[1719899159083,1.0,3460.2,3460.1,0.9761739]
[1719899160486,3.89,3460.2,3460.1,0.9761739]
[1719899160657,3.89,3460.2,3460.1,0.1551739]
[1719899173579,0.18314619,3460.1,3460.0,0.821]
[1719899173782,3.07322619,3460.1,3459.7,3.0]
[1719899174112,3.07322619,3460.1,3459.8,0.821]
[1719899174610,3.07322619,3460.1,3459.6,0.821]
[1719899174611,4.07341619,3459.9,3459.6,0.821]
[1719899174811,0.18314619,3459.7,3459.1,2.4373]
[1719899175504,1.0,3459.5,3459.3,0.821]
[1719899175679,0.18314619,3459.7,3459.3,0.821]
[1719899176013,1.0,3459.5,3459.3,0.821]
[1719899177014,3.07357619,3459.7,3459.3,0.821]
[1719899177015,0.18314619,3459.7,3459.3,0.821]
[1719899177217,0.18314619,3459.7,3459.5,0.821]
[1719899178435,2.89011,3460.1,3459.5,0.821]
[1719899178436,1.18314619,3460.0,3459.5,0.821]
[1719899178725,1.18314619,3460.0,3459.9,0.821]
[1719899178726,0.18314619,3460.0,3459.9,0.821]
[1719899183887,0.18314619,3460.2,3459.9,0.821]
[1719899184089,0.18314619,3460.2,3460.1,0.821]
[1719899188223,0.18314619,3460.2,3460.1,0.97149593]
[1719899195455,0.18314619,3460.2,3460.1,0.15049593]
[1719899195729,0.18314619,3460.2,3460.1,0.97149593]
[1719899195896,0.18314619,3460.2,3460.1,0.821]
[1719899196101,0.18314619,3460.2,3460.1,0.97142953]
[1719899198738,0.18314619,3460.2,3460.1,0.15042953]
[1719899204508,1.0,3460.1,3459.9,0.821]
[1719899204917,0.18314619,3460.2,3459.9,0.821]
[1719899217917,0.18314619,3460.2,3460.0,0.15044943]
[1719899221551,0.18314619,3460.2,3460.0,0.97144943]
[1719899221853,0.18314619,3460.2,3460.1,0.15044613]
[1719899222434,1.14952594,3460.2,3460.1,0.15044613]
[1719899222943,4.03952594,3460.2,3460.1,0.15044613]
[1719899223115,7.55190853,3460.2,3460.1,0.15044613]
[1719899223317,7.55190853,3460.2,3459.8,0.821]
[1719899223551,1.0,3459.9,3459.8,0.821]
[1719899223920,1.0,3459.9,3459.5,3.0]
[1719899224121,2.4544,3459.8,3459.5,3.0]
[1719899224552,2.4544,3459.8,3459.7,0.821]
[1719899224854,1.18314619,3459.9,3459.7,0.821]
[1719899225463,0.18314619,3459.9,3459.7,0.821]
[1719899225628,1.18314619,3459.9,3459.7,0.821]
[1719899228726,0.96642683,3459.8,3459.7,0.821]
[1719899228922,1.18314619,3459.9,3459.7,0.821]
[1719899230639,0.18314619,3459.5,3459.0,2.407]
[1719899230838,0.18314619,3459.5,3459.3,0.821]
[1719899232840,0.18314619,3459.5,3459.4,0.15048596]
[1719899233965,1.18314619,3459.5,3459.4,0.15048596]
[1719899234875,6.96432619,3459.5,3459.4,0.15048596]
[1719899235111,6.96432619,3459.5,3458.5,2.8914]
[1719899235112,1.0,3459.2,3459.0,0.821]
[1719899235549,1.0,3459.2,3459.1,0.15051585]
[1719899236261,1.18314619,3459.2,3459.1,0.15051585]
[1719899236456,6.50099619,3459.2,3459.1,0.15051585]
[1719899236773,7.44017881,3459.2,3459.1,0.15051585]
[1719899237069,1.0,3459.0,3458.9,0.821]
[1719899237282,1.0,3459.0,3458.8,0.821]
[1719899237444,1.18314619,3459.0,3458.8,0.821]
[1719899239654,0.18314619,3458.8,3458.4,2.3146]
[1719899239850,0.18314619,3458.8,3458.4,3.15283849]
[1719899240056,0.18314619,3458.8,3458.7,0.821]
[1719899242774,0.18314619,3458.8,3458.4,3.15283849]
[1719899242986,0.18314619,3458.8,3458.7,0.821]
[1719899243854,1.18314619,3458.8,3458.7,0.821]
[1719899245165,0.18314619,3458.8,3458.7,0.821]
[1719899245365,0.18314619,3458.8,3458.7,1.21838385]
[1719899247989,0.18314619,3458.8,3458.7,1.36940782]
[1719899248554,0.18314619,3459.0,3458.7,1.36940782]
[1719899248857,0.18314619,3459.0,3458.9,0.821]
[1719899249257,0.18314619,3459.0,3458.9,0.97202397]
[1719899256483,1.18314619,3459.0,3458.9,0.97202397]
[1719899258197,0.18314619,3459.0,3458.9,0.97202397]
[1719899260384,0.18314619,3459.0,3458.9,0.821]
[1719899260598,0.18314619,3459.0,3458.9,0.9720406]
[1719899270596,0.18314619,3459.0,3458.9,0.1510406]
[1719899270902,1.0,3458.9,3458.5,2.89136]
[1719899271081,1.0,3458.9,3458.8,0.821]
[1719899271606,1.0,3458.9,3458.8,0.97203063]
[1719899273491,1.0,3458.9,3458.8,0.15103063]
[1719899273803,1.0,3458.9,3458.8,0.97203063]
[1719899274008,1.0,3458.9,3458.8,0.821]
[1719899274181,1.0,3458.9,3458.8,0.97203063]
[1719899283215,3.89109,3458.9,3458.8,0.97203063]
[1719899283388,3.89109,3458.9,3458.8,0.15103063]
[1719899284013,2.89109,3458.9,3458.8,0.15103063]
[1719899285197,1.18314619,3459.0,3458.8,0.15103063]
[1719899286018,1.18314619,3459.0,3458.9,0.821]
[1719899286521,4.07414619,3459.0,3458.9,0.821]
[1719899287319,1.18314619,3459.0,3458.9,0.821]
[1719899290526,1.18314619,3459.0,3458.9,0.9720871]
[1719899295801,0.18314619,3459.0,3458.9,0.9720871]
[1719899304627,0.18314619,3459.0,3458.9,0.1510871]
[1719899304799,0.18314619,3459.0,3458.9,0.9720871]
[1719899334745,1.18314619,3459.0,3458.9,0.9720871]
[1719899343590,1.18314619,3459.0,3458.9,0.1510871]
[1719899343761,1.18314619,3459.0,3458.7,0.821]
[1719899344107,1.18314619,3459.0,3458.9,0.14103123]
[1719899344689,1.18314619,3459.0,3458.7,0.821]
[1719899344858,1.18314619,3459.0,3458.9,0.14103123]
[1719899345496,1.18314619,3459.0,3458.7,0.821]
[1719899345676,1.18314619,3459.0,3458.9,0.14103123]
[1719899345901,1.18314619,3459.0,3458.7,1.436492]
[1719899346100,1.18314619,3459.0,3458.9,0.14103123]
[1719899346264,1.18314619,3459.0,3458.7,0.821]
[1719899346464,1.18314619,3459.0,3458.9,0.14103123]
[1719899346657,1.18314619,3459.0,3458.7,0.821]
[1719899346865,1.18314619,3459.0,3458.9,0.14103123]
[1719899347063,1.18314619,3459.0,3458.8,0.14106446]
[1719899347366,1.18314619,3459.0,3458.9,0.14106446]
[1719899347590,1.18314619,3459.0,3458.6,0.821]
[1719899347790,1.18314619,3459.0,3458.7,0.14106778]
[1719899368734,1.18314619,3459.0,3458.8,0.821]
[1719899369118,0.18314619,3459.0,3458.9,0.14110433]
[1719899370952,2.54074619,3459.6,3459.0,2.3914]
[1719899371164,0.18314619,3459.6,3459.5,0.821]
[1719899371503,2.3576,3459.8,3459.5,0.821]
[1719899371504,2.54074619,3459.8,3459.5,0.821]
[1719899371710,0.18314619,3459.8,3459.5,0.96205449]
[1719899372036,2.53344619,3460.0,3459.7,0.821]
[1719899372256,5.42362619,3460.0,3459.7,0.821]
[1719899372757,0.18314619,3459.8,3459.7,0.821]
[1719899372947,0.18314619,3459.8,3459.5,0.821]
[1719899373248,0.18314619,3459.8,3459.6,0.14092827]
[1719899373740,0.18314619,3459.8,3459.7,0.821]
[1719899381745,0.18314619,3459.8,3459.7,0.9569069]
[1719899382927,0.18314619,3459.8,3459.7,0.1359069]
[1719899383244,1.0,3459.6,3459.5,0.821]
[1719899385854,1.18314619,3459.8,3459.5,0.821]
[1719899393455,1.18314619,3459.8,3459.2,2.89083]
[1719899393755,1.18314619,3459.8,3459.6,0.821]
[1719899397927,1.18314619,3459.8,3459.7,0.1359135]
[1719899399754,1.18314619,3459.8,3459.5,0.821]
[1719899399954,1.18314619,3459.8,3459.7,0.1359135]
[1719899400276,1.18314619,3459.8,3459.7,0.13590358]
[1719899400572,1.18314619,3459.8,3459.5,0.821]
[1719899400767,1.18314619,3459.8,3459.7,0.13590358]
[1719899400971,1.18314619,3459.8,3459.5,0.821]
[1719899401453,1.18314619,3459.8,3459.6,0.13590358]
[1719899402476,1.38314619,3459.8,3459.6,0.13590358]
[1719899409648,0.38314619,3459.8,3459.6,0.13590358]
[1719899409979,0.38314619,3459.8,3459.7,5.96782]
[1719899409980,0.2,3459.8,3459.7,5.96782]
[1719899410181,0.2,3459.8,3459.7,6.87303003]
[1719899410359,0.2,3459.8,3459.7,7.00892699]
[1719899415658,0.2,3459.8,3459.7,9.89934699]
[1719899415853,0.2,3459.8,3459.7,10.44934699]
[1719899418977,0.2,3459.8,3459.7,9.62834699]
[1719899419167,0.2,3459.8,3459.7,10.44934699]
[1719899421475,0.2,3459.8,3459.7,10.74455596]
[1719899424267,0.2,3459.8,3459.7,13.74455596]
[1719899425105,3.4323,3460.6,3460.1,2.89005]
[1719899425501,2.4323,3460.6,3460.3,0.821]
[1719899425996,2.4323,3460.6,3460.5,0.821]
[1719899426572,2.4323,3460.6,3460.5,0.95674816]
[1719899430315,0.18314619,3460.7,3460.5,0.95674816]
[1719899431987,0.18314619,3460.7,3460.5,0.99338607]
[1719899432305,0.18314619,3460.7,3460.5,0.17238607]
[1719899432603,0.18314619,3460.7,3460.6,0.821]
[1719899432806,0.18314619,3460.7,3460.6,0.99338278]
[1719899434696,0.18314619,3460.7,3460.6,0.17238278]
[1719899434909,0.18314619,3460.7,3460.6,0.821]
[1719899435091,0.18314619,3460.7,3460.6,0.99338278]
[1719899444309,1.18314619,3460.7,3460.6,0.17238278]
[1719899444516,1.18314619,3460.7,3460.5,0.821]
[1719899444715,1.18314619,3460.7,3460.6,0.17234641]
[1719899445096,3.64774619,3460.7,3460.6,0.17234641]
[1719899446826,6.53732619,3460.7,3460.6,0.17234641]
[1719899462950,6.53732619,3460.7,3460.5,0.821]
[1719899463247,6.53732619,3460.7,3460.6,0.17235634]
[1719899463608,6.53732619,3460.7,3460.5,0.821]
[1719899464018,6.53732619,3460.7,3460.6,0.17235634]
[1719899464432,6.53732619,3460.7,3460.5,0.821]
[1719899464833,6.53732619,3460.7,3460.6,0.17235634]
[1719899465332,6.53732619,3460.7,3460.5,0.821]
[1719899465537,6.53732619,3460.7,3460.6,0.17235634]
[1719899465837,6.53732619,3460.7,3460.5,0.821]
[1719899466221,6.53732619,3460.7,3460.6,0.17235634]
[1719899466643,6.53732619,3460.7,3460.5,0.821]
[1719899467245,6.53732619,3460.7,3460.6,0.17235634]
[1719899467462,7.09204457,3460.7,3460.6,0.17235634]
[1719899467625,6.53732619,3460.7,3460.5,0.821]
[1719899468028,6.53732619,3460.7,3460.6,0.17235964]
[1719899468630,6.53732619,3460.7,3460.5,0.821]
[1719899468827,2.88967,3460.6,3460.0,2.89016]
[1719899469053,2.88967,3460.6,3460.5,0.821]
[1719899469347,2.88967,3460.6,3460.5,0.793]
[1719899471952,5.36192,3460.3,3459.9,7.43]
[1719899472118,5.36192,3460.3,3460.2,0.821]
[1719899472119,6.36192,3460.3,3460.2,0.821]
[1719899472467,3.88992,3460.3,3460.2,0.821]
[1719899472966,3.88992,3460.3,3460.2,0.99335964]
[1719899474161,2.88992,3460.3,3460.2,0.99335964]
[1719899483562,1.0,3460.4,3460.2,0.99335964]
[1719899483986,3.88985,3460.4,3460.2,0.99335964]
[1719899486179,0.96597126,3460.3,3460.2,0.99335964]
[1719899487122,1.0,3460.4,3460.2,0.99335964]
[1719899501018,3.88984,3460.4,3460.2,0.99335964]
[1719899504214,2.88992,3460.3,3460.2,0.99335964]
[1719899536395,2.88992,3460.3,3460.2,0.17235964]
[1719899536587,2.88992,3460.3,3460.2,0.821]
[1719899536895,2.88992,3460.3,3460.2,0.99342169]
[1719899550499,1.0,3460.4,3460.2,0.99342169]
[1719899550701,3.88984,3460.4,3460.2,0.99342169]
[1719899552616,3.88984,3460.4,3460.2,0.17242169]
[1719899552820,3.88984,3460.4,3460.1,0.821]
[1719899553121,1.0,3460.2,3460.1,0.821]
[1719899555218,3.88992,3460.3,3460.1,0.821]
[1719899562798,3.88992,3460.3,3460.2,0.17246796]
[1719899565242,1.0,3460.3,3460.2,0.17246796]
[1719899566303,3.88992,3460.3,3460.2,0.17246796]
[1719899592061,3.88992,3460.3,3460.2,0.99346796]
[1719899592261,6.19282,3460.3,3460.2,0.17246796]
[1719899592690,10.74725259,3460.3,3460.2,0.17246796]
[1719899592918,2.89042,3459.7,3459.6,0.821]
[1719899593112,2.89056,3459.6,3459.1,7.43]
[1719899593414,2.89056,3459.6,3459.4,0.821]
[1719899595113,3.89056,3459.6,3459.4,0.821]
[1719899596719,2.89059,3459.5,3459.1,0.2898498]
[1719899596923,2.89059,3459.5,3459.4,0.821]
[1719899601306,2.89077,3459.3,3459.0,0.28224197]
[1719899601534,2.89077,3459.3,3459.2,0.821]
[1719899604909,2.89077,3459.3,3458.8,3.0]
[1719899605105,1.0,3459.2,3458.8,3.0]
[1719899605330,2.89077,3459.3,3458.8,3.0]
[1719899605331,2.89092,3459.1,3459.0,0.821]
[1719899605511,2.89111,3458.9,3458.5,2.3711]
[1719899605713,2.89111,3458.9,3458.8,0.821]
[1719899608051,3.89111,3458.9,3458.8,0.99424185]
[1719899609527,2.89111,3458.9,3458.8,0.99424185]
[1719899610642,3.89111,3458.9,3458.8,0.99424185]
[1719899615145,1.0,3458.9,3458.8,0.99424185]
[1719899642304,6.55933619,3458.9,3458.8,0.17324185]
[1719899642688,2.89117,3458.8,3458.7,0.821]
[1719899644314,4.07423619,3458.9,3458.7,0.821]
[1719899645709,1.0,3458.9,3458.7,0.821]
[1719899645915,1.0,3458.9,3458.7,1.43097]
[1719899650382,2.8909,3459.2,3458.7,1.43097]
[1719899650383,3.07404619,3459.2,3458.7,1.43097]
[1719899650639,0.18314619,3459.2,3459.1,0.821]
[1719899650789,1.39330534,3459.2,3458.7,3.02557]
[1719899650989,1.18314619,3459.2,3459.1,0.821]
[1719899651302,1.39330598,3459.2,3459.1,0.821]
[1719899652916,1.39330598,3459.2,3459.1,0.99444698]
[1719899656620,4.28414598,3459.2,3459.1,0.99444698]
[1719899657147,4.28414598,3459.2,3459.1,0.17344698]
[1719899657346,1.0,3459.0,3458.9,0.821]
[1719899657650,1.0,3459.0,3458.9,0.99438411]
[1719899660951,3.891,3459.0,3458.9,0.99438411]
[1719899677076,4.10119651,3459.0,3458.9,0.99438411]
[1719899677276,3.891,3459.0,3458.9,0.99438411]
[1719899677462,4.10119964,3459.0,3458.9,0.99438411]
[1719899678473,6.96514619,3459.0,3458.9,0.17338411]
[1719899679047,9.06766799,3459.0,3458.9,0.17338411]
[1719899681063,9.06764764,3459.0,3458.9,0.17338411]
[1719899681292,6.96514619,3459.0,3458.9,0.17338411]
[1719899681469,9.06764767,3459.0,3458.9,0.17338411]
[1719899684488,9.0676523,3459.0,3458.9,0.17338411]
[1719899687494,9.06765221,3459.0,3458.9,0.17338411]
[1719899688014,8.06765221,3459.0,3458.9,0.17338411]
[1719899688584,6.17665221,3459.0,3458.9,0.17338411]
[1719899689008,2.10250602,3459.0,3458.9,2.75145252]
[1719899690717,2.89093,3459.1,3458.9,2.75145252]
[1719899690894,2.10228134,3459.0,3458.9,2.75145252]
[1719899691097,2.89093,3459.1,3458.9,3.57245252]
[1719899691297,2.1022814,3459.0,3458.9,3.57245252]
[1719899692682,2.1022814,3459.0,3458.9,2.42668411]
[1719899692882,2.1022814,3459.0,3458.9,3.24768411]
[1719899693914,2.10237294,3459.0,3458.9,3.24768411]
[1719899695213,2.10237294,3459.0,3458.9,0.99438411]
[1719899697284,2.10237047,3459.0,3458.9,0.99438411]
[1719899698807,2.10237047,3459.0,3458.9,0.17338411]
[1719899699118,2.10237047,3459.0,3458.9,0.821]
[1719899699320,2.10237047,3459.0,3458.9,0.99305406]
[1719899700522,2.10236078,3459.0,3458.9,0.99305406]
[1719899701420,2.10236078,3459.0,3458.9,3.6343317]
[1719899701622,1.0,3459.8,3459.2,2.89081]
[1719899701804,3.07340619,3459.9,3459.2,2.89081]
[1719899701805,2.10198865,3459.7,3459.6,0.821]
[1719899702131,2.10198865,3459.7,3459.6,0.99283572]
[1719899702618,2.10198865,3459.8,3459.6,0.99283572]
[1719899702922,4.07340619,3459.9,3459.7,0.821]
[1719899703222,2.10187594,3459.8,3459.7,0.821]
[1719899704307,2.10187594,3460.0,3459.7,0.821]
[1719899704507,2.10187594,3460.0,3459.9,0.821]
[1719899705031,1.18314619,3460.1,3459.9,0.821]
[1719899705201,2.10182201,3460.0,3459.9,0.821]
[1719899706033,1.18314619,3460.1,3459.9,0.821]
[1719899706205,2.10182596,3460.0,3459.9,0.821]
[1719899709188,1.18314619,3460.1,3459.9,0.821]
[1719899709392,2.10177084,3460.0,3459.9,0.821]
[1719899710629,4.07323619,3460.1,3459.9,0.821]
[1719899710825,4.07311619,3460.3,3459.9,0.821]
[1719899711144,4.07311619,3460.3,3459.7,2.2617]
[1719899711145,2.10176771,3460.2,3459.7,2.2617]
[1719899711296,1.18314619,3460.3,3460.1,0.821]
[1719899712397,4.07307619,3460.3,3460.1,0.821]
[1719899712934,4.07307619,3460.3,3460.2,0.17134625]
[1719899713115,1.18314619,3460.3,3460.2,0.17134625]
[1719899713508,1.0,3460.4,3460.2,0.17134625]
[1719899713716,1.0,3460.4,3460.3,0.821]
[1719899713916,3.28475191,3460.4,3460.3,0.821]
[1719899714324,3.28475191,3460.4,3460.3,0.99234625]
[1719899714523,1.18314619,3460.4,3460.3,0.99234625]
[1719899714933,4.07297619,3460.4,3460.3,0.99234625]
[1719899715431,1.0,3460.4,3460.3,0.99234625]
[1719899715628,4.07286619,3460.6,3460.3,0.99234625]
[1719899715930,4.07286619,3460.6,3460.5,0.821]
[1719899716302,6.17444663,3460.6,3460.5,0.821]
[1719899716497,6.17444663,3460.6,3460.5,0.99234625]
[1719899718357,4.07286619,3460.6,3460.5,0.99234625]
[1719899728657,1.18314619,3460.6,3460.5,0.99234625]
[1719899739754,3.28459662,3460.6,3460.5,0.17134625]
[1719899739944,3.28459662,3460.6,3460.5,0.99234625]
[1719899740146,3.28459662,3460.6,3460.5,0.821]
[1719899740463,3.28459662,3460.6,3460.5,0.98641321]
[1719899741870,3.28462038,3460.6,3460.5,0.98641321]
[1719899742355,3.28462086,3460.6,3460.5,0.98641321]
[1719899744984,1.18314619,3460.8,3460.5,0.98641321]
[1719899745201,2.10146075,3460.7,3460.5,0.16541321]
[1719899745494,2.10146075,3460.7,3460.6,0.821]
[1719899745650,1.0,3460.6,3460.1,2.89007]
[1719899745846,2.10146075,3460.5,3460.2,1.550599]
[1719899746082,2.10146075,3460.5,3460.4,0.821]
[1719899748161,1.0,3460.6,3460.4,0.821]
[1719899748359,2.10139461,3460.5,3460.4,0.821]
[1719899751565,2.10139575,3460.5,3460.4,0.821]
[1719899752398,2.10139575,3460.5,3460.4,1.3471669]
[1719899754796,2.1013983,3460.5,3460.4,1.3471669]
[1719899755170,1.0,3460.6,3460.4,1.3471669]
[1719899755368,2.10139845,3460.5,3460.4,1.3471669]
[1719899758033,2.10139798,3460.5,3460.4,1.51253384]
[1719899758245,2.10139793,3460.5,3460.4,1.51253384]
[1719899759910,2.10139793,3460.6,3460.4,1.51253384]
[1719899760110,2.10139793,3460.5,3460.4,1.51253384]
[1719899760922,2.1013982,3460.6,3460.4,1.51253384]
[1719899761239,2.1013982,3460.5,3460.4,0.69153384]
[1719899761424,1.0,3460.7,3460.5,0.821]
[1719899761623,2.10139792,3460.6,3460.5,0.821]
[1719899762020,2.10139792,3460.6,3460.5,0.98636694]
[1719899763612,1.0,3460.7,3460.5,0.98636694]
[1719899763846,2.10139661,3460.6,3460.5,0.98636694]
[1719899765340,2.10139707,3460.6,3460.5,0.98636694]
[1719899767259,2.10139704,3460.6,3460.5,0.98636694]
[1719899767844,2.10139727,3460.6,3460.5,0.98636694]
[1719899770354,2.10140117,3460.6,3460.5,0.98636694]
[1719899770725,2.1014005,3460.6,3460.5,0.98636694]
[1719899772823,3.1014005,3460.6,3460.5,0.98636694]
[1719899773523,1.0,3460.6,3460.5,0.98636694]
[1719899773726,3.1014007,3460.6,3460.5,0.98636694]
[1719899775561,2.1014007,3460.6,3460.5,0.98636694]
[1719899776868,1.18314619,3460.8,3460.5,0.98636694]
[1719899777030,2.10136731,3460.7,3460.5,0.16536694]
[1719899777359,2.10136731,3460.6,3460.3,2.3823]
[1719899777659,2.10136731,3460.5,3460.3,3.3535909]
[1719899777842,2.10136731,3460.4,3460.3,3.3535909]
[1719899778179,2.10136731,3460.4,3460.3,4.1745909]
[1719899778381,2.10136731,3460.7,3460.3,4.1745909]
[1719899778683,2.10136731,3460.6,3460.3,3.3535909]
[1719899778861,2.10136731,3460.5,3460.3,3.3535909]
[1719899779182,1.18314619,3460.8,3460.4,1.32042149]
[1719899779479,2.10137054,3460.7,3460.3,3.3535909]
[1719899779650,2.10137054,3460.6,3460.3,3.3535909]
[1719899779851,2.10137054,3460.5,3460.3,3.3535909]
[1719899780067,1.18314619,3460.8,3460.4,0.821]
[1719899780389,1.18314619,3460.8,3460.7,0.821]
[1719899780588,1.39327807,3460.8,3460.7,0.821]
[1719899780752,3.31150717,3460.8,3460.7,0.821]
[1719899783258,1.21013188,3460.8,3460.7,0.821]
[1719899783485,3.31145948,3460.8,3460.7,0.821]
[1719899785517,3.1013276,3460.8,3460.7,0.821]
[1719899786464,1.0,3460.8,3460.7,0.821]
[1719899786670,3.10132197,3460.8,3460.7,0.821]
[1719899788064,3.10132197,3460.8,3460.7,0.98610246]
[1719899789172,1.0,3460.8,3460.7,0.98610246]
[1719899789378,3.31144682,3460.8,3460.7,0.98610246]
[1719899789823,3.31145519,3460.8,3460.7,0.98610246]
[1719899790101,3.10132901,3460.8,3460.7,0.16510246]
[1719899790277,11.58670807,3460.8,3460.7,0.16510246]
[1719899790475,1.0,3460.4,3460.3,0.821]
[1719899790705,3.10132901,3460.4,3460.3,0.821]
[1719899790900,3.10132901,3460.4,3460.3,0.98610246]
[1719899793202,3.10141021,3460.4,3460.3,0.98610246]
[1719899793577,3.10140871,3460.4,3460.3,0.98610246]
[1719899796274,1.0,3460.4,3460.3,0.98610246]
[1719899796478,3.1014115,3460.4,3460.3,0.98610246]
[1719899798870,2.1014115,3460.4,3460.3,0.98610246]
[1719899799076,2.1014115,3460.4,3460.3,1.38471271]
[1719899799520,2.1014077,3460.4,3460.3,1.38471271]
[1719899802696,1.0,3460.6,3460.3,1.38471271]
[1719899803007,1.0,3460.6,3460.5,0.821]
[1719899803177,3.10140463,3460.6,3460.5,0.821]
[1719899803578,3.10140463,3460.6,3460.5,0.98609256]
[1719899806007,1.0,3460.6,3460.5,0.98609256]
[1719899806209,3.10140236,3460.6,3460.5,0.98609256]
[1719899806620,3.10140257,3460.6,3460.5,0.98609256]
[1719899809313,3.10140256,3460.6,3460.5,0.98609256]
[1719899810929,2.10140256,3460.6,3460.5,0.98609256]
[1719899812442,3.8895,3460.8,3460.5,0.98609256]
[1719899812720,2.31153267,3460.7,3460.5,0.16509256]
[1719899812923,2.10139733,3460.6,3460.1,5.15256]
[1719899813098,2.10139733,3460.5,3460.2,1.847281]
[1719899813422,2.10139733,3460.4,3460.2,2.01230084]
[1719899813623,2.10139733,3460.3,3460.2,2.01230084]
[1719899813790,2.10139733,3460.3,3460.2,2.83330084]
[1719899814114,2.10139733,3460.7,3460.2,2.83330084]
[1719899814283,2.10139733,3460.6,3460.3,1.09858608]
[1719899814491,2.10139733,3460.5,3460.3,1.09858608]
[1719899814819,2.10139733,3460.4,3460.3,1.09858608]